bitfinex/quotes_BTCUSD_20240927
["timestamp","ask_amount","ask_price","bid_price","bid_amount"]
[1727422309634,0.631239,65656.0,65647.0,15.91920214]
[1727422309635,0.46693,65656.0,65647.0,15.91920214]
[1727422309809,0.754239,65656.0,65655.0,0.001]
[1727422310051,0.754239,65656.0,65655.0,0.0783]
[1727422310750,0.766239,65656.0,65655.0,0.0793]
[1727422311463,0.754239,65656.0,65655.0,0.0783]
[1727422311691,0.742239,65656.0,65655.0,0.0773]
[1727422311938,0.88115456,65656.0,65655.0,0.0773]
[1727422312185,0.88115456,65656.0,65655.0,0.0793]
[1727422312427,0.88115456,65656.0,65655.0,0.0783]
[1727422312665,0.88115456,65656.0,65655.0,0.0773]
[1727422312907,0.88088963,65656.0,65655.0,0.0783]
[1727422313163,0.74197407,65656.0,65655.0,0.0783]
[1727422313616,0.75597407,65656.0,65655.0,0.0783]
[1727422314049,0.74280207,65656.0,65655.0,0.0783]
[1727422314257,0.75680207,65656.0,65655.0,0.0783]
[1727422314915,0.75680207,65656.0,65655.0,0.001]
[1727422315140,0.87682854,65656.0,65655.0,0.001]
[1727422315375,2.05306354,65656.0,65655.0,0.001]
[1727422315595,1.62565554,65656.0,65655.0,0.001]
[1727422315811,1.31153954,65656.0,65655.0,0.001]
[1727422316057,0.75680207,65656.0,65655.0,0.001]
[1727422317853,0.75680207,65656.0,65655.0,0.0767]
[1727422321634,0.89829689,65656.0,65655.0,0.001]
[1727422321870,0.275325,65649.0,65648.0,0.22846525]
[1727422322087,0.275327,65648.0,65647.0,15.77770732]
[1727422322525,0.77757079,65648.0,65647.0,15.77770732]
[1727422322743,0.79351639,65648.0,65647.0,15.77770732]
[1727422322988,0.79325177,65648.0,65647.0,15.77770732]
[1727422323208,0.98355177,65648.0,65647.0,15.77770732]
[1727422323448,1.0887119,65648.0,65647.0,15.77770732]
[1727422323714,5.3142119,65648.0,65647.0,15.77770732]
[1727422323947,5.21868163,65648.0,65647.0,15.77770732]
[1727422324176,5.39559737,65648.0,65647.0,15.77770732]
[1727422324396,5.55198543,65648.0,65647.0,15.77770732]
[1727422324840,5.56598543,65648.0,65647.0,15.77770732]
[1727422325295,5.54106343,65648.0,65647.0,15.77770732]
[1727422325512,5.52706343,65648.0,65647.0,15.77770732]
[1727422325726,5.51717526,65648.0,65647.0,15.77770732]
[1727422326656,5.47419721,65648.0,65647.0,15.77770732]
[1727422326867,5.48819721,65648.0,65647.0,15.77770732]
[1727422327295,5.46019721,65648.0,65647.0,15.77770732]
[1727422327535,5.47419721,65648.0,65647.0,15.77770732]
[1727422327757,5.48819721,65648.0,65647.0,15.77770732]
[1727422327971,5.47419721,65648.0,65647.0,15.77770732]
[1727422328401,5.46019721,65648.0,65647.0,15.77770732]
[1727422328645,5.47419721,65648.0,65647.0,15.77770732]
[1727422328886,5.51208766,65648.0,65647.0,15.77770732]
[1727422329554,5.55470264,65648.0,65647.0,15.77770732]
[1727422329779,5.51208766,65648.0,65647.0,15.77770732]
[1727422330049,5.55462827,65648.0,65647.0,15.77770732]
[1727422330273,5.49808766,65648.0,65647.0,15.77770732]
[1727422330699,5.48408766,65648.0,65647.0,15.77770732]
[1727422330939,5.49808766,65648.0,65647.0,15.77770732]
[1727422331166,5.72221466,65648.0,65647.0,15.77770732]
[1727422331439,5.69421466,65648.0,65647.0,15.77770732]
[1727422331660,5.76478245,65648.0,65647.0,15.77770732]
[1727422331877,5.77164194,65648.0,65647.0,15.77770732]
[1727422332088,5.75764194,65648.0,65647.0,15.77770732]
[1727422332271,5.74364194,65648.0,65647.0,15.77770732]
[1727422332526,5.055523,65648.0,65647.0,15.77770732]
[1727422332815,2.724539,65648.0,65647.0,15.77770732]
[1727422333034,2.63500932,65648.0,65647.0,15.77770732]
[1727422333495,2.64900932,65648.0,65647.0,15.77770732]
[1727422333716,2.63500932,65648.0,65647.0,15.77770732]
[1727422334868,2.85289627,65648.0,65647.0,15.77770732]
[1727422335084,2.81500532,65648.0,65647.0,15.77770732]
[1727422335546,2.80100532,65648.0,65647.0,15.77770732]
[1727422335976,2.81500532,65648.0,65647.0,15.77770732]
[1727422336460,2.81500532,65648.0,65647.0,15.68610232]
[1727422337136,2.82900532,65648.0,65647.0,15.62503232]
[1727422337348,2.81500532,65648.0,65647.0,15.62503232]
[1727422337530,2.82900532,65648.0,65647.0,15.62503232]
[1727422337790,2.80100532,65648.0,65647.0,15.62503232]
[1727422338011,2.82489713,65648.0,65647.0,15.62503232]
[1727422338280,2.85289713,65648.0,65647.0,15.62503232]
[1727422338501,2.48170152,65648.0,65647.0,15.62503232]
[1727422338721,2.64461726,65648.0,65647.0,15.62503232]
[1727422338940,2.65861726,65648.0,65647.0,15.62503232]
[1727422339195,2.67261726,65648.0,65647.0,15.62503232]
[1727422339843,2.75989803,65648.0,65647.0,15.62503232]
[1727422340062,2.59741726,65648.0,65647.0,15.62503232]
[1727422340553,2.58341726,65648.0,65647.0,15.62503232]
[1727422340780,2.56941726,65648.0,65647.0,15.62503232]
[1727422340994,2.58341726,65648.0,65647.0,15.62503232]
[1727422341260,2.59741726,65648.0,65647.0,15.62503232]
[1727422341484,2.75380532,65648.0,65647.0,15.62503232]
[1727422341706,2.77769657,65648.0,65647.0,15.62503232]
[1727422342581,1.55454957,65648.0,65647.0,15.62503232]
[1727422342807,4.27633357,65648.0,65647.0,15.62503232]
[1727422343069,4.27580138,65648.0,65647.0,15.62503232]
[1727422345928,4.25191013,65648.0,65647.0,15.62503232]
[1727422346562,4.29776892,65648.0,65647.0,15.62503232]
[1727422347066,4.33896791,65648.0,65647.0,15.62503232]
[1727422349098,4.36285943,65648.0,65647.0,15.62503232]
[1727422350135,4.36368743,65648.0,65647.0,15.62503232]
[1727422351327,4.31782864,65648.0,65647.0,15.62503232]
[1727422351556,4.27662965,65648.0,65647.0,15.62503232]
[1727422353421,1.55484565,65648.0,65647.0,15.62503232]
[1727422353591,5.78034565,65648.0,65647.0,15.62503232]
[1727422354267,5.71650665,65648.0,65647.0,15.62503232]
[1727422354495,5.25650665,65648.0,65647.0,15.62503232]
[1727422354918,5.30250098,65648.0,65647.0,15.62503232]
[1727422355670,5.27860946,65648.0,65647.0,15.62503232]
[1727422356273,5.35780946,65648.0,65647.0,14.9005965]
[1727422356747,5.18089372,65648.0,65647.0,14.9005965]
[1727422356957,5.34380946,65648.0,65647.0,14.9005965]
[1727422357159,5.34380946,65648.0,65647.0,14.8700585]
[1727422357160,5.35780946,65648.0,65647.0,14.8700585]
[1727422357510,4.5545894,65648.0,65647.0,14.8700585]
[1727422357745,4.50859507,65648.0,65647.0,14.8700585]
[1727422357977,4.49459507,65648.0,65647.0,14.8700585]
[1727422358183,4.58311107,65648.0,65647.0,14.8700585]
[1727422358391,4.57192707,65648.0,65647.0,14.8700585]
[1727422358589,4.20014107,65648.0,65647.0,14.8700585]
[1727422358960,4.17910282,65648.0,65647.0,14.8700585]
[1727422359195,3.35590176,65648.0,65647.0,14.8700585]
[1727422359974,2.87533176,65648.0,65647.0,14.8700585]
[1727422360199,2.86133176,65648.0,65647.0,14.8700585]
[1727422360412,2.84733176,65648.0,65647.0,14.8700585]
[1727422360618,2.51686376,65648.0,65647.0,14.8700585]
[1727422360828,2.68725182,65648.0,65647.0,14.8700585]
[1727422361040,2.70125182,65648.0,65647.0,14.8700585]
[1727422361254,2.65925182,65648.0,65647.0,14.8700585]
[1727422361679,2.68725182,65648.0,65647.0,14.8700585]
[1727422363036,2.67325182,65648.0,65647.0,14.8700585]
[1727422363266,2.68725182,65648.0,65647.0,14.8700585]
[1727422363693,2.67325182,65648.0,65647.0,14.8700585]
[1727422363904,2.68725182,65648.0,65647.0,14.8700585]
[1727422364121,2.67325182,65648.0,65647.0,14.8700585]
[1727422364605,2.68725182,65648.0,65647.0,14.8700585]
[1727422365250,2.67325182,65648.0,65647.0,14.8700585]
[1727422365675,2.66336013,65648.0,65647.0,14.8700585]
[1727422366545,2.64936013,65648.0,65647.0,14.8700585]
[1727422366775,2.66336013,65648.0,65647.0,14.8700585]
[1727422367009,2.66336013,65648.0,65647.0,14.58376562]
[1727422367010,2.64936013,65648.0,65647.0,14.58376562]
[1727422367245,2.66336013,65648.0,65647.0,14.58376562]
[1727422367462,2.61804634,65648.0,65647.0,14.58376562]
[1727422367676,2.60404634,65648.0,65647.0,14.58376562]
[1727422367885,2.61804634,65648.0,65647.0,14.58376562]
[1727422369026,2.64193869,65648.0,65647.0,14.58376562]
[1727422369652,5.73503269,65648.0,65647.0,14.58376562]
[1727422369859,5.82208915,65648.0,65647.0,14.58376562]
[1727422371589,5.82208915,65648.0,65647.0,14.55322962]
[1727422371799,5.82208915,65648.0,65647.0,14.49215762]
[1727422376108,5.82208915,65648.0,65647.0,14.33947062]
[1727422376109,5.78094052,65648.0,65647.0,14.33947062]
[1727422376336,5.72016303,65648.0,65647.0,14.27839462]
[1727422376786,5.70616303,65648.0,65647.0,14.27839462]
[1727422377026,5.69216303,65648.0,65647.0,14.21731862]
[1727422377309,5.76102247,65648.0,65647.0,14.12570462]
[1727422377505,5.73302247,65648.0,65647.0,14.12570462]
[1727422378037,5.73302247,65648.0,65647.0,14.06462862]
[1727422378038,5.74702247,65648.0,65647.0,14.06462862]
[1727422378281,5.74702247,65648.0,65647.0,14.00355262]
[1727422378491,5.76102247,65648.0,65647.0,13.97301462]
[1727422378712,5.73713012,65648.0,65647.0,13.97301462]
[1727422379140,5.69627068,65648.0,65647.0,13.41262429]
[1727422379353,5.69627068,65648.0,65647.0,13.38208629]
[1727422380274,5.69627068,65648.0,65647.0,13.19038329]
[1727422380275,5.65036285,65648.0,65647.0,13.19038329]
[1727422380509,5.65036285,65648.0,65647.0,13.12930729]
[1727422381683,5.65036285,65648.0,65647.0,13.06370904]
[1727422381924,5.67425589,65648.0,65647.0,13.06370904]
[1727422382866,5.67425589,65648.0,65647.0,12.40517271]
[1727422385115,5.67425589,65648.0,65647.0,12.39272771]
[1727422385210,5.67425589,65648.0,65647.0,12.38405771]
[1727422385440,5.67425589,65648.0,65647.0,12.37638771]
[1727422386111,5.67425589,65648.0,65647.0,12.37613771]
[1727422386786,5.65036285,65648.0,65647.0,12.37613771]
[1727422386999,5.65036285,65648.0,65647.0,12.36519771]
[1727422387207,5.65036285,65648.0,65647.0,12.35409771]
[1727422387655,5.65036285,65648.0,65647.0,12.34507771]
[1727422388300,5.65036285,65648.0,65647.0,12.32858771]
[1727422389416,5.69595951,65648.0,65647.0,12.32858771]
[1727422391427,5.71985255,65648.0,65647.0,12.32858771]
[1727422391667,5.69595951,65648.0,65647.0,12.32858771]
[1727422392100,5.63530251,65648.0,65647.0,12.32858771]
[1727422392310,5.47368851,65648.0,65647.0,12.32858771]
[1727422392980,5.49073257,65648.0,65647.0,12.32858771]
[1727422393821,5.49073257,65648.0,65647.0,12.30904918]
[1727422395762,5.49073257,65648.0,65647.0,12.30123365]
[1727422397389,5.49071136,65648.0,65647.0,12.30123365]
[1727422398856,5.49071136,65648.0,65647.0,12.28138257]
[1727422399797,5.47071136,65648.0,65647.0,12.28138257]
[1727422400031,5.47071136,65648.0,65647.0,12.25837257]
[1727422400276,5.47071136,65648.0,65647.0,12.06099057]
[1727422401294,5.47071136,65648.0,65647.0,12.04544484]
[1727422402697,5.47071136,65648.0,65647.0,12.02253803]
[1727422403173,5.47071136,65648.0,65647.0,11.99200003]
[1727422404145,5.55311136,65648.0,65647.0,11.56379472]
[1727422404380,5.5125573,65648.0,65647.0,10.89099652]
[1727422404659,5.51254562,65648.0,65647.0,10.73030652]
[1727422404909,5.49854562,65648.0,65647.0,10.71489652]
[1727422405149,5.49854562,65648.0,65647.0,10.68766852]
[1727422405426,5.49854562,65648.0,65647.0,10.63727643]
[1727422406127,5.49854562,65648.0,65647.0,10.60673643]
[1727422406357,5.49854562,65648.0,65647.0,10.48457643]
[1727422406985,5.49854562,65648.0,65647.0,10.45403643]
[1727422407213,5.49854562,65648.0,65647.0,10.36241643]
[1727422407449,5.49854562,65648.0,65647.0,10.33187643]
[1727422407682,5.51254562,65648.0,65647.0,10.33187643]
[1727422408135,5.55301225,65648.0,65647.0,10.16237143]
[1727422408382,5.55301225,65648.0,65647.0,10.15778739]
[1727422408833,5.51254562,65648.0,65647.0,9.28278739]
[1727422409072,5.49854562,65648.0,65647.0,9.25224739]
[1727422409313,5.48454562,65648.0,65647.0,9.16062739]
[1727422409584,5.48454562,65648.0,65647.0,9.13008739]
[1727422409585,5.52243941,65648.0,65647.0,9.13008739]
[1727422409814,5.49854562,65648.0,65647.0,9.13008739]
[1727422410024,5.49854562,65648.0,65647.0,9.05983932]
[1727422410282,5.45296064,65648.0,65647.0,8.61510727]
[1727422410505,5.45296064,65648.0,65647.0,8.52339773]
[1727422410737,5.45296064,65648.0,65647.0,8.49454564]
[1727422411147,5.55292175,65648.0,65647.0,8.34184164]
[1727422411897,5.46696064,65648.0,65647.0,7.46584164]
[1727422412119,5.46696064,65648.0,65647.0,7.43530164]
[1727422413051,5.46696064,65648.0,65647.0,7.31314164]
[1727422413527,5.46696064,65648.0,65647.0,7.19098164]
[1727422413756,5.51248631,65648.0,65647.0,7.19098164]
[1727422414173,5.7821611,65648.0,65647.0,7.03828164]
[1727422415324,5.7821611,65648.0,65647.0,6.91612164]
[1727422415518,5.7821611,65648.0,65647.0,6.88558164]
[1727422415781,5.75826731,65648.0,65647.0,6.88558164]
[1727422416176,5.75826731,65648.0,65647.0,6.69642989]
[1727422416177,5.79863891,65648.0,65647.0,6.69642989]
[1727422416429,5.79863891,65648.0,65647.0,5.35169717]
[1727422416669,5.79863891,65648.0,65647.0,5.30976159]
[1727422416887,5.79863891,65648.0,65647.0,5.20495549]
[1727422417144,5.79863891,65648.0,65647.0,5.17441049]
[1727422417358,5.79863891,65648.0,65647.0,5.11332049]
[1727422417575,5.78463891,65648.0,65647.0,5.05223049]
[1727422417798,5.78463891,65648.0,65647.0,4.97254496]
[1727422418011,5.77063891,65648.0,65647.0,4.94199996]
[1727422418231,5.78463891,65648.0,65647.0,4.81981996]
[1727422418449,5.79863891,65648.0,65647.0,4.81981996]
[1727422418656,5.78463891,65648.0,65647.0,4.81981996]
[1727422418871,5.80853443,65648.0,65647.0,4.81981996]
[1727422419700,5.80853443,65648.0,65647.0,4.75444296]
[1727422419915,5.79863891,65648.0,65647.0,4.66280796]
[1727422420340,7.07173891,65648.0,65647.0,4.60171796]
[1727422420657,7.07173891,65648.0,65647.0,4.57117296]
[1727422421112,7.07173891,65648.0,65647.0,4.51008296]
[1727422421368,7.07173891,65648.0,65647.0,4.44899296]
[1727422421543,6.95562187,65648.0,65647.0,4.41844796]
[1727422421917,7.07176887,65648.0,65647.0,4.41844796]
[1727422422780,7.09566432,65648.0,65647.0,4.41844796]
[1727422422991,7.09566432,65648.0,65647.0,4.38790496]
[1727422425076,6.97951732,65648.0,65647.0,4.38790496]
[1727422425285,7.09566432,65648.0,65647.0,4.38790496]
[1727422425706,6.67476257,65648.0,65647.0,4.38790496]
[1727422425940,6.61360885,65648.0,65647.0,4.38790496]
[1727422426146,5.34050885,65648.0,65647.0,4.38790496]
[1727422426355,5.30013725,65648.0,65647.0,4.38790496]
[1727422426563,5.28613725,65648.0,65647.0,4.38790496]
[1727422426978,5.50580738,65648.0,65647.0,4.38790496]
[1727422427185,5.46552531,65648.0,65647.0,4.38790496]
[1727422427389,5.47952531,65648.0,65647.0,4.38790496]
[1727422427600,5.46552531,65648.0,65647.0,4.38790496]
[1727422428021,5.49352531,65648.0,65647.0,4.38790496]
[1727422428253,5.50581892,65648.0,65647.0,4.38790496]
[1727422428672,5.51981892,65648.0,65647.0,4.38790496]
[1727422428896,5.50581892,65648.0,65647.0,4.38790496]
[1727422429103,5.52971335,65648.0,65647.0,4.38790496]
[1727422429324,5.51571335,65648.0,65647.0,4.38790496]
[1727422429554,5.52971335,65648.0,65647.0,4.38790496]
[1727422430291,5.54371335,65648.0,65647.0,4.38790496]
[1727422430511,5.48941974,65648.0,65647.0,3.82537336]
[1727422430945,5.54355519,65648.0,65647.0,3.82537336]
[1727422431150,5.52955519,65648.0,65647.0,3.82537336]
[1727422431384,5.48941974,65648.0,65647.0,3.82537336]
[1727422431628,5.51559369,65648.0,65647.0,3.82537336]
[1727422432126,5.52959369,65648.0,65647.0,3.82537336]
[1727422432358,5.51559369,65648.0,65647.0,3.73374436]
[1727422432562,5.52959369,65648.0,65647.0,3.73374436]
[1727422433017,5.47006802,65648.0,65647.0,3.17121276]
[1727422433241,5.42989407,65648.0,65647.0,3.17121276]
[1727422433453,5.44389407,65648.0,65647.0,3.17121276]
[1727422433661,5.48928876,65648.0,65647.0,3.17121276]
[1727422433879,5.50328876,65648.0,65647.0,3.17121276]
[1727422436066,5.46392562,65648.0,65647.0,2.60868116]
[1727422436980,5.43592562,65648.0,65647.0,2.60868116]
[1727422437437,5.44992562,65648.0,65647.0,2.60868116]
[1727422437695,5.46392562,65648.0,65647.0,2.60868116]
[1727422438751,1.21453119,65648.0,65647.0,2.60868116]
[1727422438990,5.44003119,65648.0,65647.0,2.60868116]
[1727422440328,5.44003119,65648.0,65647.0,2.45597116]
[1727422441190,5.44003119,65648.0,65647.0,2.42542916]
[1727422441710,5.46392663,65648.0,65647.0,2.42542916]
[1727422443149,5.8592056,65648.0,65647.0,2.27271416]
[1727422445341,5.8592056,65648.0,65647.0,2.18108516]
[1727422445756,5.83531016,65648.0,65647.0,2.17344889]
[1727422445961,5.87537934,65648.0,65647.0,2.17344889]
[1727422446196,5.87537934,65648.0,65647.0,2.16581251]
[1727422446678,5.87537934,65648.0,65647.0,2.15471943]
[1727422447370,5.87537934,65648.0,65647.0,2.12417643]
[1727422448231,5.86137934,65648.0,65647.0,2.12417643]
[1727422448481,5.84737934,65648.0,65647.0,2.12417643]
[1727422448688,5.86137934,65648.0,65647.0,2.06309043]
[1727422448893,5.86137934,65648.0,65647.0,2.03254743]
[1727422449096,5.88527587,65648.0,65647.0,2.03254743]
[1727422449525,5.88527587,65648.0,65647.0,2.00200443]
[1727422450639,5.89927587,65648.0,65647.0,2.00200443]
[1727422451952,5.88527587,65648.0,65647.0,2.00200443]
[1727422452162,5.75512887,65648.0,65647.0,2.00200443]
[1727422452384,5.88527587,65648.0,65647.0,2.00200443]
[1727422453680,5.89927587,65648.0,65647.0,2.00200443]
[1727422454328,5.89927587,65648.0,65647.0,1.98300443]
[1727422456256,5.27674081,65648.0,65647.0,1.98300443]
[1727422456474,5.20494381,65648.0,65647.0,1.98300443]
[1727422456728,5.18104728,65648.0,65647.0,2.05970443]
[1727422457580,5.25104728,65648.0,65647.0,2.05970443]
[1727422457793,5.43043534,65648.0,65647.0,2.05970443]
[1727422458013,5.36043534,65648.0,65647.0,2.05970443]
[1727422459997,5.45433059,65648.0,65647.0,2.05970443]
[1727422460209,5.45433059,65648.0,65647.0,1.80748543]
[1727422460413,5.38433059,65648.0,65647.0,1.80748543]
[1727422460861,5.36043534,65648.0,65647.0,1.80748543]
[1727422461526,5.36043534,65648.0,65647.0,1.54033543]
[1727422461728,5.36043534,65648.0,65647.0,1.39169543]
[1727422462598,5.36043534,65648.0,65647.0,1.38721102]
[1727422463018,5.43043534,65648.0,65647.0,1.38721102]
[1727422463887,5.45433066,65648.0,65647.0,1.38721102]
[1727422464096,5.45433066,65648.0,65647.0,1.38132416]
[1727422464517,5.60866817,65648.0,65647.0,1.38132416]
[1727422464927,5.45433066,65648.0,65647.0,1.20946416]
[1727422465602,5.45433066,65648.0,65631.0,0.001654]
[1727422465603,0.252364,65632.0,65631.0,0.001654]
[1727422465866,0.9041498,65632.0,65631.0,0.001654]
[1727422466103,5.1296498,65632.0,65631.0,0.001654]
[1727422466323,5.16949501,65632.0,65631.0,0.001654]
[1727422466541,5.1455954,65632.0,65631.0,0.001654]
[1727422466774,5.1455954,65632.0,65617.0,0.22846525]
[1727422466775,0.252394,65619.0,65618.0,0.2659]
[1727422467015,0.9041875,65619.0,65618.0,0.2659]
[1727422467483,5.1296875,65619.0,65618.0,0.0753]
[1727422467921,5.0135405,65619.0,65618.0,0.0753]
[1727422468138,5.1436875,65619.0,65618.0,0.0753]
[1727422468358,3.88690151,65619.0,65618.0,0.0753]
[1727422468996,3.87883779,65619.0,65618.0,0.0753]
[1727422469433,3.90274095,65619.0,65618.0,0.076956]
[1727422469653,3.91674095,65619.0,65618.0,0.05867413]
[1727422469897,3.93074095,65619.0,65618.0,0.05867413]
[1727422470100,3.91674095,65619.0,65618.0,0.001656]
[1727422471022,3.91674095,65619.0,65606.0,0.1896]
[1727422471023,0.252406,65614.0,65606.0,0.1896]
[1727422471265,0.252406,65614.0,65603.0,0.001656]
[1727422471266,0.30484,65609.0,65603.0,0.001656]
[1727422471517,0.275429,65604.0,65603.0,0.001656]
[1727422471763,0.732359,65604.0,65603.0,0.001656]
[1727422471988,3.08228473,65604.0,65603.0,0.001656]
[1727422472210,3.23867279,65604.0,65603.0,0.001656]
[1727422472643,3.23867279,65604.0,65603.0,0.084256]
[1727422472883,3.25267279,65604.0,65603.0,0.084256]
[1727422473861,3.20451279,65604.0,65603.0,0.084256]
[1727422474811,2.95428826,65604.0,65603.0,0.084256]
[1727422475497,2.57889626,65604.0,65603.0,0.084256]
[1727422475730,2.17970153,65604.0,65603.0,0.084256]
[1727422475961,2.16570153,65604.0,65603.0,0.084256]
[1727422476637,0.89462453,65604.0,65603.0,0.084256]
[1727422476860,0.90862453,65604.0,65603.0,0.084256]
[1727422477088,3.19518253,65604.0,65603.0,0.084256]
[1727422477395,4.02788153,65604.0,65603.0,0.084256]
[1727422477636,3.58188153,65604.0,65603.0,0.084256]
[1727422477890,3.54906353,65604.0,65603.0,0.084256]
[1727422478095,3.53506353,65604.0,65603.0,0.001656]
[1727422478533,3.54906353,65604.0,65603.0,0.001656]
[1727422478977,3.53506353,65604.0,65603.0,0.001656]
[1727422479213,3.54497063,65604.0,65603.0,0.001656]
[1727422479460,3.57297063,65604.0,65603.0,0.001656]
[1727422479701,3.55897063,65604.0,65603.0,0.001656]
[1727422480189,3.54906353,65604.0,65603.0,0.001656]
[1727422480458,3.53506353,65604.0,65603.0,0.001656]
[1727422480912,3.54906353,65604.0,65603.0,0.001656]
[1727422481323,3.53506353,65604.0,65603.0,0.001656]
[1727422481760,3.56500913,65604.0,65603.0,0.001656]
[1727422482201,3.79023293,65604.0,65603.0,0.001656]
[1727422482417,3.81413977,65604.0,65603.0,0.001656]
[1727422483057,3.80013977,65604.0,65603.0,0.001656]
[1727422483274,3.81413977,65604.0,65603.0,0.001656]
[1727422483712,3.80013977,65604.0,65603.0,0.001656]
[1727422484160,3.81413977,65604.0,65603.0,0.001656]
[1727422484580,3.51398577,65604.0,65603.0,0.001656]
[1727422485024,3.46875797,65604.0,65603.0,0.001656]
[1727422485694,3.44485113,65604.0,65603.0,0.001656]
[1727422486123,3.43085113,65604.0,65603.0,0.001656]
[1727422486546,3.44485113,65604.0,65603.0,0.001656]
[1727422487175,3.43085113,65604.0,65603.0,0.001656]
[1727422487625,3.44485113,65604.0,65603.0,0.001656]
[1727422487852,3.43085113,65604.0,65603.0,0.001656]
[1727422488070,3.41685113,65604.0,65603.0,0.001656]
[1727422488292,3.43085113,65604.0,65603.0,0.001656]
[1727422488494,3.54709922,65604.0,65603.0,0.001656]
[1727422488706,3.59232702,65604.0,65603.0,0.001656]
[1727422489174,3.61623473,65604.0,65603.0,0.001656]
[1727422489383,3.60223473,65604.0,65603.0,0.001656]
[1727422489799,3.61623473,65604.0,65603.0,0.001656]
[1727422490006,3.60223473,65604.0,65603.0,0.001656]
[1727422490227,3.57832702,65604.0,65603.0,0.001656]
[1727422490441,3.59232702,65604.0,65603.0,0.001656]
[1727422490652,3.60632702,65604.0,65603.0,0.001656]
[1727422491055,3.59232702,65604.0,65603.0,0.001656]
[1727422491476,3.64585419,65604.0,65603.0,0.001656]
[1727422493165,3.66976209,65604.0,65603.0,0.001656]
[1727422493590,3.65576209,65604.0,65603.0,0.001656]
[1727422494044,3.66976209,65604.0,65603.0,0.001656]
[1727422494266,3.65576209,65604.0,65603.0,0.001656]
[1727422494464,3.66976209,65604.0,65603.0,0.001656]
[1727422495786,5.54097709,65604.0,65603.0,0.001656]
[1727422495992,5.56897709,65604.0,65603.0,0.001656]
[1727422496428,5.55497709,65604.0,65603.0,0.001656]
[1727422496674,5.56897709,65604.0,65603.0,0.001656]
[1727422496914,5.55497709,65604.0,65603.0,0.001656]
[1727422497154,5.56897709,65604.0,65603.0,0.001656]
[1727422497570,5.55497709,65604.0,65603.0,0.001656]
[1727422497817,5.54097709,65604.0,65603.0,0.001656]
[1727422498039,5.55497709,65604.0,65603.0,0.001656]
[1727422498488,5.54097709,65604.0,65603.0,0.001656]
[1727422498944,5.54506919,65604.0,65603.0,0.001656]
[1727422499629,5.53106919,65604.0,65603.0,0.001656]
[1727422500049,5.54506919,65604.0,65603.0,0.001656]
[1727422500262,5.4148211,65604.0,65603.0,0.001656]
[1727422500486,5.53106919,65604.0,65603.0,0.001656]
[1727422500735,3.3039611,65604.0,65603.0,0.001656]
[1727422500937,3.32145422,65604.0,65603.0,0.001656]
[1727422501184,3.33545422,65604.0,65603.0,0.001656]
[1727422502070,3.35936295,65604.0,65603.0,0.001656]
[1727422505609,3.39889012,65604.0,65603.0,0.001656]
[1727422506036,3.35936295,65604.0,65603.0,0.001656]
[1727422506479,3.42936295,65604.0,65603.0,0.001656]
[1727422506690,3.46889012,65604.0,65603.0,0.001656]
[1727422507754,3.39889012,65604.0,65603.0,0.001656]
[1727422508159,3.35936295,65604.0,65603.0,0.001656]
[1727422508836,3.33545422,65604.0,65603.0,0.001656]
[1727422510635,1.23481422,65604.0,65603.0,0.001656]
[1727422510903,5.46031422,65604.0,65603.0,0.001656]
[1727422511123,5.54506919,65604.0,65603.0,0.001656]
[1727422512095,5.56897907,65604.0,65603.0,0.001656]
[1727422512566,5.56889946,65604.0,65603.0,0.001656]
[1727422512784,5.56881969,65604.0,65603.0,0.001656]
[1727422514560,0.252455,65593.0,65592.0,0.001656]
[1727422514770,2.191176,65593.0,65592.0,0.001656]
[1727422514983,2.420676,65593.0,65592.0,0.001656]
[1727422515201,2.29547,65593.0,65592.0,0.001656]
[1727422515424,2.33532706,65593.0,65592.0,0.001656]
[1727422516808,2.40504356,65593.0,65592.0,0.001656]
[1727422517225,2.41904356,65593.0,65592.0,0.001656]
[1727422517442,2.36332706,65593.0,65592.0,0.001656]
[1727422518526,2.34539149,65593.0,65592.0,0.001656]
[1727422526116,2.36930234,65593.0,65592.0,0.001656]
[1727422527249,2.34539149,65593.0,65592.0,0.001656]
[1727422532833,0.78230649,65593.0,65592.0,0.001656]
[1727422533068,3.37974435,65593.0,65592.0,0.001656]
[1727422533299,3.46449932,65593.0,65592.0,0.001656]
[1727422533528,3.43164032,65593.0,65592.0,0.001656]
[1727422533777,3.08984632,65593.0,65592.0,0.001656]
[1727422534283,3.04461852,65593.0,65592.0,0.001656]
[1727422534754,3.02900232,65593.0,65592.0,0.001656]
[1727422535704,3.11375729,65593.0,65592.0,0.001656]
[1727422537876,3.38425729,65593.0,65592.0,0.001656]
[1727422538328,3.47659441,65593.0,65592.0,0.001656]
[1727422538546,3.28344632,65593.0,65592.0,0.001656]
[1727422538728,3.04125955,65593.0,65592.0,0.001656]
[1727422538985,2.95650458,65593.0,65592.0,0.001656]
[1727422539211,2.97050458,65593.0,65592.0,0.001656]
[1727422539419,2.95650458,65593.0,65592.0,0.001656]
[1727422539623,3.09889264,65593.0,65592.0,0.001656]
[1727422539840,3.12689264,65593.0,65592.0,0.001656]
[1727422540090,3.11289264,65593.0,65592.0,0.001656]
[1727422540540,3.09889264,65593.0,65592.0,0.001656]
[1727422540949,3.11289264,65593.0,65592.0,0.001656]
[1727422541156,3.09889264,65593.0,65592.0,0.001656]
[1727422541580,3.13680702,65593.0,65592.0,0.001656]
[1727422541788,3.15080702,65593.0,65592.0,0.001656]
[1727422541997,3.23556199,65593.0,65592.0,0.001656]
[1727422542203,3.22156199,65593.0,65592.0,0.001656]
[1727422542660,3.23556199,65593.0,65592.0,0.001656]
[1727422542863,3.22156199,65593.0,65592.0,0.001656]
[1727422544227,3.23556199,65593.0,65592.0,0.001656]
[1727422544653,1.16702984,65593.0,65592.0,0.001656]
[1727422544886,1.06827487,65593.0,65592.0,0.001656]
[1727422545091,1.08227487,65593.0,65592.0,0.001656]
[1727422545314,0.78322087,65593.0,65592.0,0.001656]
[1727422545571,0.50087656,65593.0,65592.0,0.269456]
[1727422545802,0.50087656,65593.0,65592.0,0.30833132]
[1727422546267,0.48687656,65593.0,65592.0,0.269456]
[1727422546988,0.60087656,65593.0,65592.0,0.269456]
[1727422547218,0.73933156,65593.0,65592.0,0.269456]
[1727422547458,0.75333156,65593.0,65592.0,0.269456]
[1727422547696,0.75333156,65593.0,65592.0,0.080956]
[1727422547697,0.73933156,65593.0,65592.0,0.080956]
[1727422547929,2.86679765,65593.0,65592.0,0.001656]
[1727422548166,2.39939765,65593.0,65592.0,0.001656]
[1727422548410,2.42739765,65593.0,65592.0,0.001656]
[1727422548857,2.41339765,65593.0,65592.0,0.001656]
[1727422549146,2.44714868,65593.0,65592.0,0.001656]
[1727422549410,2.52974868,65593.0,65592.0,0.001656]
[1727422549639,2.70544868,65593.0,65592.0,0.001656]
[1727422549856,2.74336316,65593.0,65592.0,0.001656]